Department Family,Entity,Date of Payment,GL Description,Expense Area,Supplier,Voluntary,SME Class,Sole Trader,Transaction number,Purchasing Item Text,Postal Code,Amount in Sterling,Grant?
MHCLG,PINS,02/01/2018,Agency Staff,Inspector Development & Support Team,REED SPECIALIST RECRUITMENT LTD,,Large,,5106233033,Agency Staff for IDST DB,SW20 0BA,827.64,
MHCLG,PINS,02/01/2018,Agency Staff,Inspector Development & Support Team,REED SPECIALIST RECRUITMENT LTD,,Large,,5106233049,Agency Staff for IDST DB,SW20 0BA,326.70,
MHCLG,PINS,02/01/2018,NSI Fees & Expenses,NSI Fees Planning,GARY DEANE ASSOCIATES LIMITED,,Micro,,2100056771,,M33 6RG,"2,016.00",
MHCLG,PINS,02/01/2018,NSI Fees & Expenses,NSI Expenses Planning,GARY DEANE ASSOCIATES LIMITED,,Micro,,2100056771,,M33 6RG,75.06,
MHCLG,PINS,02/01/2018,NSI Fees & Expenses,NSI Fees Planning,H J L PLANNING,,Micro,,2100056777,,CM3 1HZ,280.00,
MHCLG,PINS,02/01/2018,NSI Fees & Expenses,NSI Fees Planning,MARTIN ANDREWS PLANNING CONSULTANCY,,Micro,,2100056776,,BH15 1HH,"2,016.00",
MHCLG,PINS,02/01/2018,NSI Fees & Expenses,NSI Expenses Planning,MARTIN ANDREWS PLANNING CONSULTANCY,,Micro,,2100056776,,BH15 1HH,167.64,
MHCLG,PINS,02/01/2018,NSI Fees & Expenses,NSI Fees Planning,MR R J MAILE,,Not assigned,,2100056773,,BN11 1QG,"1,680.00",
MHCLG,PINS,03/01/2018,Agency Staff,Planning Casework Operations,REED SPECIALIST RECRUITMENT LTD,,Large,,5106233026,CLASSIC CASEWORK - ES,SW20 0BA,672.66,
MHCLG,PINS,03/01/2018,Agency Staff,TR Digital Transformation,REED SPECIALIST RECRUITMENT LTD,,Large,,5106233028,Build Suport,SW20 0BA,898.07,
MHCLG,PINS,03/01/2018,Agency Staff,TR Digital Transformation,REED SPECIALIST RECRUITMENT LTD,,Large,,5106233031,Build Suport,SW20 0BA,"1,005.30",
MHCLG,PINS,03/01/2018,Agency Staff,Planning Casework Operations,REED SPECIALIST RECRUITMENT LTD,,Large,,5106233035,Classic Casework - RT,SW20 0BA,670.00,
MHCLG,PINS,03/01/2018,Agency Staff,Planning Casework Operations,REED SPECIALIST RECRUITMENT LTD,,Large,,5106233085,CLASSIC CASEWORK - ES,SW20 0BA,618.12,
MHCLG,PINS,03/01/2018,Agency Staff,Planning Casework Operations,REED SPECIALIST RECRUITMENT LTD,,Large,,5106233088,CLASSIC CASEWORK - KR,SW20 0BA,390.88,
MHCLG,PINS,03/01/2018,Agency Staff,Planning Casework Operations,REED SPECIALIST RECRUITMENT LTD,,Large,,5106233089,Classic Casework - RT,SW20 0BA,402.90,
MHCLG,PINS,03/01/2018,Agency Staff,Planning Casework Operations,REED SPECIALIST RECRUITMENT LTD,,Large,,5106233090,CLASSIC CASEWORK- CD,SW20 0BA,418.97,
MHCLG,PINS,03/01/2018,Agency Staff,Planning Casework Operations,REED SPECIALIST RECRUITMENT LTD,,Large,,5106233091,CLASSIC CASEWORK - CM,SW20 0BA,545.40,
MHCLG,PINS,03/01/2018,Agency Staff,TR Digital Transformation,REED SPECIALIST RECRUITMENT LTD,,Large,,5106233094,Build Suport,SW20 0BA,562.97,
MHCLG,PINS,03/01/2018,NSI Fees & Expenses,NSI Fees Planning,JDA DEVELOPMENT & PLANNING SERVICE,,Micro,,2100056820,,TA14 6PT,"1,400.00",
MHCLG,PINS,03/01/2018,NSI Fees & Expenses,NSI Expenses Planning,JDA DEVELOPMENT & PLANNING SERVICE,,Micro,,2100056820,,TA14 6PT,136.50,
MHCLG,PINS,03/01/2018,NSI Fees & Expenses,NSI Fees Planning,MARTIN ANDREWS PLANNING CONSULTANCY,,Micro,,2100056828,,BH15 1HH,"1,764.00",
MHCLG,PINS,03/01/2018,NSI Fees & Expenses,NSI Expenses Planning,MARTIN ANDREWS PLANNING CONSULTANCY,,Micro,,2100056828,,BH15 1HH,314.35,
MHCLG,PINS,03/01/2018,Office machinery consumables,Business Support,X M A LIMITED,,Data Not Provided,,5106233095,Office Machine Consumables,NG11 7EP,866.88,
MHCLG,PINS,03/01/2018,Office machinery consumables,Business Support,X M A LIMITED,,Data Not Provided,,5106233101,Office Machine Consumables,NG11 7EP,585.86,
MHCLG,PINS,03/01/2018,Office machinery consumables,Business Support,X M A LIMITED,,Data Not Provided,,5106233103,Office Machine Consumables,NG11 7EP,342.30,
MHCLG,PINS,03/01/2018,Office Supplies,Business Support,BANNER BUSINESS SUPPLIES LTD,,Large,,5106233099,Office Stationery 17-18,S9 1XU,365.90,
MHCLG,PINS,03/01/2018,Office Supplies,Business Support,BANNER BUSINESS SUPPLIES LTD,,Large,,5106233099,Paper 17-18,S9 1XU,328.31,
MHCLG,PINS,04/01/2018,Courier Services,Wales Director,ROYAL MAIL,,Large,,2100056914,Postal Sevices,S49 1HQ,-644.36,
MHCLG,PINS,04/01/2018,Courier Services,Wales Director,ROYAL MAIL,,Large,,5106233157,Postal Sevices,S49 1HQ,644.36,
MHCLG,PINS,04/01/2018,IT - Service Contracts,ICT Business Partner,ZSAH LTD,,Small,,5106233126,Extension of contract PINS 17/12/710,SW7 3HE,"3,415.22",
MHCLG,PINS,04/01/2018,Steady State Service Provision,Human Resources,CGI IT UK LIMITED,,Large,,5106233124,Payroll Service 2017/18,CF31 9AP,"4,114.22",
MHCLG,PINS,04/01/2018,Steady State Service Provision,Human Resources,MINISTRY OF JUSTICE,,Data Not Provided,,5106233123,HR Casework Service 2017/18,NP10 8BA,"9,412.80",
MHCLG,PINS,05/01/2018,Advertising,ROW,TMP (UK) LIMITED,,Large,,5106233164,Statutory Advertising - ROW,W1T 7RQ,634.75,
MHCLG,PINS,05/01/2018,Agency Staff,Planning Casework Operations,BROOK STREET (UK) LTD,,Large,,5106233136,PCO AO Staff,AL1 4JB,596.74,
MHCLG,PINS,05/01/2018,Agency Staff,Planning Casework Operations,BROOK STREET (UK) LTD,,Large,,5106233174,PCO AO Staff,AL1 4JB,596.74,
MHCLG,PINS,05/01/2018,Agency Staff,Inspector Development & Support Team,REED SPECIALIST RECRUITMENT LTD,,Large,,5106233172,Temp staff for IDST,SW20 0BA,505.50,
MHCLG,PINS,05/01/2018,Courier Services,Wales Director,ROYAL MAIL,,Large,,5106233148,Postal Sevices (9055758602),S49 1HQ,405.55,
MHCLG,PINS,05/01/2018,Courier Services,Wales Director,ROYAL MAIL,,Large,,5106233178,Postal Sevices,S49 1HQ,644.36,
MHCLG,PINS,05/01/2018,NSI Fees & Expenses,NSI Fees Planning,D C PLANNING LTD,,Data Not Provided,,2100056912,,BH14 8AL,"4,704.00",
MHCLG,PINS,05/01/2018,NSI Fees & Expenses,NSI Expenses Planning,D C PLANNING LTD,,Data Not Provided,,2100056912,,BH14 8AL,258.54,
MHCLG,PINS,05/01/2018,NSI Fees & Expenses,NSI Fees Planning,SANDRA PRAIL LTD,,Micro,,2100056915,,BN16 1RX,739.20,
MHCLG,PINS,05/01/2018,NSI Fees & Expenses,NSI Expenses Planning,SANDRA PRAIL LTD,,Micro,,2100056915,,BN16 1RX,120.29,
MHCLG,PINS,05/01/2018,NSI Fees & Expenses,NSI Fees Planning,W S C WADRUP INDEPENDENT CONS LTD,,Micro,,2100056918,,MK43 7DU,"2,352.00",
MHCLG,PINS,05/01/2018,Software Licences,TR Digital Transformation,PHOENIX SOFTWARE,,Medium,,5106233180,Microsoft EMS Licenses,YO42 1NS,"1,149.53",
MHCLG,PINS,05/01/2018,Vehicle hire,Inspector Costs,ENTERPRISE RENT-A-CAR,,Large,,5106233171,VEHICLE HIRE APRIL 2017- MARCH 2018,TW20 9FB,"16,362.91",
MHCLG,PINS,08/01/2018,Office Machinery Rental,ICT Business Partner,NEW RICOH UK,,Large,,5106233194,Click - Mar to Mar 2018,TW13 7HG,954.98,
MHCLG,PINS,08/01/2018,Office Machinery Rental,ICT Business Partner,NEW RICOH UK,,Large,,5106233194,Rental - June to Mar 2018,TW13 7HG,433.05,
MHCLG,PINS,09/01/2018,Courier Services,Estates,ROYAL MAIL,,Large,,5106233228,Outgoing post,S49 1HQ,"1,206.59",
MHCLG,PINS,09/01/2018,Cycle to Work Scheme,Finance accounting adjustments,EDENRED (UK GROUP) LTD,,Large,,2100056994,,SW1V 2RS,744.72,
MHCLG,PINS,09/01/2018,NSI Fees & Expenses,NSI Fees Planning,CHRIS TIVEY ASSOCIATES,,Micro,,2100056944,,BA4 9DN,"1,680.00",
MHCLG,PINS,09/01/2018,NSI Fees & Expenses,NSI Expenses Planning,CHRIS TIVEY ASSOCIATES,,Micro,,2100056944,,BA4 9DN,185.58,
MHCLG,PINS,09/01/2018,NSI Fees & Expenses,NSI Fees Planning,GRESTY LAND AGENCY LTD,,Micro,,2100056945,,PE9 4EF,224.00,
MHCLG,PINS,09/01/2018,NSI Fees & Expenses,NSI Expenses Planning,GRESTY LAND AGENCY LTD,,Micro,,2100056945,,PE9 4EF,184.88,
MHCLG,PINS,09/01/2018,NSI Fees & Expenses,NSI Fees Planning,GRESTY LAND AGENCY LTD,,Micro,,2100056946,,PE9 4EF,"1,400.00",
MHCLG,PINS,09/01/2018,NSI Fees & Expenses,NSI Expenses Planning,GRESTY LAND AGENCY LTD,,Micro,,2100056946,,PE9 4EF,112.20,
MHCLG,PINS,09/01/2018,NSI Fees & Expenses,NSI Fees Planning,GRESTY LAND AGENCY LTD,,Micro,,2100056948,,PE9 4EF,"1,540.00",
MHCLG,PINS,09/01/2018,NSI Fees & Expenses,NSI Expenses Planning,GRESTY LAND AGENCY LTD,,Micro,,2100056948,,PE9 4EF,71.25,
MHCLG,PINS,09/01/2018,NSI Fees & Expenses,NSI Fees Planning,W S C WADRUP INDEPENDENT CONS LTD,,Micro,,2100056940,,MK43 7DU,"4,368.00",
MHCLG,PINS,09/01/2018,NSI Fees & Expenses,NSI Expenses Planning,W S C WADRUP INDEPENDENT CONS LTD,,Micro,,2100056940,,MK43 7DU,975.89,
MHCLG,PINS,10/01/2018,Legal Fees,"Policy, Knowledge & Quality",GOVERNMENT LEGAL DEPT,,Public Bodies,,5106233238,Disbursements,WC2B 4TS,"33,115.72",
MHCLG,PINS,10/01/2018,Legal Fees,"Policy, Knowledge & Quality",GOVERNMENT LEGAL DEPT,,Public Bodies,,5106233238,fees and charges,WC2B 4TS,"64,687.00",
MHCLG,PINS,10/01/2018,Office Machinery Rental,ICT Business Partner,NEW RICOH UK,,Large,,5106233267,Colour Capable Devices,TW13 7HG,"1,680.83",
MHCLG,PINS,10/01/2018,TSOL Adverse Costs,"Policy, Knowledge & Quality",GOVERNMENT LEGAL DEPARTMENT,,Public Bodies,,2100057030,,WC2B 4TS,"9,500.00",
MHCLG,PINS,11/01/2018,Communication Telecom Costs,ICT Business Partner,BT PAYMENT SERVICE LIMITED,,Large,,5106233314,Line rental & usage charges for a/c,DH98 1BT,286.92,
MHCLG,PINS,11/01/2018,Specialist Technical Support,Transformation Prog Management Office,METHODS PROFESSIONAL SERVICES,,Small,,5106233317,Programme Management Specialist,EC1A 4EN,"18,240.00",
MHCLG,PINS,12/01/2018,NSI Fees & Expenses,NSI Fees Planning,4 PLANNING DELIVERY LTD,,Micro,,2100057033,,S8 9BG,"1,204.00",
MHCLG,PINS,12/01/2018,NSI Fees & Expenses,NSI Expenses Planning,4 PLANNING DELIVERY LTD,,Micro,,2100057033,,S8 9BG,96.04,
MHCLG,PINS,12/01/2018,NSI Fees & Expenses,NSI Fees Planning,CARBROOK ASSOCIATES,,Micro,,2100057123,,M32 8QU,"1,120.00",
MHCLG,PINS,12/01/2018,NSI Fees & Expenses,NSI Expenses Planning,CARBROOK ASSOCIATES,,Micro,,2100057123,,M32 8QU,198.49,
MHCLG,PINS,12/01/2018,NSI Fees & Expenses,ICT Application Support,H J L PLANNING,,Micro,,2100057124,,CM3 1HZ,"1,400.00",
MHCLG,PINS,12/01/2018,NSI Fees & Expenses,NSI Expenses Planning,H J L PLANNING,,Micro,,2100057124,,CM3 1HZ,63.04,
MHCLG,PINS,12/01/2018,NSI Fees & Expenses,NSI Fees Planning,MARTIN SEDDON LIMITED,,Micro,,2100057036,,DE4 2JP,"1,680.00",
MHCLG,PINS,12/01/2018,NSI Fees & Expenses,NSI Expenses Planning,MARTIN SEDDON LIMITED,,Micro,,2100057036,,DE4 2JP,158.16,
MHCLG,PINS,12/01/2018,Office Supplies,Business Support,BANNER BUSINESS SUPPLIES LTD,,Large,,5106233364,Office Stationery 17-18,S9 1XU,218.29,
MHCLG,PINS,12/01/2018,Office Supplies,Business Support,BANNER BUSINESS SUPPLIES LTD,,Large,,5106233364,Paper 17-18,S9 1XU,399.75,
MHCLG,PINS,15/01/2018,IT - Software Maintenance,ICT Business Partner,TRICOSTAR SOFTWARE LTD,,Small,,5106233387,"24/7 license renewal, maintenance &",EN2 7XU,"11,287.15",
MHCLG,PINS,15/01/2018,NSI Fees & Expenses,NSI Fees Planning,GARY DEANE ASSOCIATES LIMITED,,Micro,,2100057151,,M33 6RG,"2,016.00",
MHCLG,PINS,15/01/2018,NSI Fees & Expenses,NSI Expenses Planning,GARY DEANE ASSOCIATES LIMITED,,Micro,,2100057151,,M33 6RG,262.44,
MHCLG,PINS,15/01/2018,Online Database Information Retrieval,"Policy, Knowledge & Quality",HAYMARKET MEDIA GROUP LIMITED,,Data Not Provided,,5106233403,Planning Resource,TW1 3SP,"9,765.00",
MHCLG,PINS,15/01/2018,Recruitment/Procurement Accomodation,Inspector Costs,REDFERN TRAVEL LIMITED,,Small,,5106233399,Hotel Accommodation,BD1 3AZ,"32,599.18",
MHCLG,PINS,15/01/2018,Recruitment/Procurement Accomodation,Inspector Costs,REDFERN TRAVEL LIMITED,,Small,,5106233399,Hotel Fees,BD1 3AZ,153.89,
MHCLG,PINS,15/01/2018,Technical Aids for the disabled,Human Resources,HEALTH  MANAGEMENT LTD,,Medium,,5106233384,Health Managmt WEF 1/12/17,BN8 5NN,"1,528.79",
MHCLG,PINS,15/01/2018,Training,Human Resources,HOWARD DAVIS CONSULTANCY LTD,,Micro,,5106233390,Exec Coaching x 5 - SR,GL20 7SL,"1,750.00",
MHCLG,PINS,15/01/2018,Travel and Subsistence Account,Inspector Costs,REDFERN TRAVEL LIMITED,,Small,,5106233399,Air travel,BD1 3AZ,"1,391.90",
MHCLG,PINS,15/01/2018,Travel and Subsistence Account,Inspector Costs,REDFERN TRAVEL LIMITED,,Small,,5106233399,Bill back fee,BD1 3AZ,22.80,
MHCLG,PINS,15/01/2018,Travel and Subsistence Account,Inspector Costs,REDFERN TRAVEL LIMITED,,Small,,5106233399,Rail Travel,BD1 3AZ,"16,161.77",
MHCLG,PINS,15/01/2018,Travel and Subsistence Account,Inspector Costs,REDFERN TRAVEL LIMITED,,Small,,5106233399,Web Transactions,BD1 3AZ,430.15,
MHCLG,PINS,16/01/2018,Agency Staff,Planning Casework Operations,REED SPECIALIST RECRUITMENT LTD,,Large,,5106233431,CLASSIC CASEWORK - ES,SW20 0BA,527.22,
MHCLG,PINS,16/01/2018,Agency Staff,Planning Casework Operations,REED SPECIALIST RECRUITMENT LTD,,Large,,5106233433,CLASSIC CASEWORK - KR,SW20 0BA,436.32,
MHCLG,PINS,16/01/2018,Agency Staff,Enforcements,REED SPECIALIST RECRUITMENT LTD,,Large,,5106233434,Agency Staff RT,SW20 0BA,534.19,
MHCLG,PINS,16/01/2018,Conferences and Meeting Facilities,Common Land,THORNES CHARTERED SURVEYORS,,Micro,,5106233422,hire of external meeting room,BH15 1NR,"2,062.50",
MHCLG,PINS,16/01/2018,Vehicle hire,Inspector Costs,ENTERPRISE RENT-A-CAR,,Large,,5106233423,VEHICLE HIRE APRIL 2017- MARCH 2018,TW20 9FB,"12,170.15",
MHCLG,PINS,17/01/2018,Advertising,Common Land,TMP (UK) LIMITED,,Large,,5106233448,Statutory Advertising - Common Land,W1T 7RQ,420.77,
MHCLG,PINS,17/01/2018,Advertising,ROW,TMP (UK) LIMITED,,Large,,5106233453,Statutory Advertising - ROW,W1T 7RQ,585.42,
MHCLG,PINS,17/01/2018,Advertising,ROW,TMP (UK) LIMITED,,Large,,5106233456,Statutory Advertising - ROW,W1T 7RQ,654.02,
MHCLG,PINS,17/01/2018,Agency Staff,Inspector Development & Support Team,REED SPECIALIST RECRUITMENT LTD,,Large,,5106233450,Temp staff for IDST,SW20 0BA,439.56,
MHCLG,PINS,17/01/2018,EXP � PURCHASE OF GOODS /SERVICES R & D,Research and Development,METHODS PROFESSIONAL SERVICES,,Small,,5106233247,IWPS PDM,EC1A 4EN,"11,700.00",
MHCLG,PINS,17/01/2018,IT SUPPORT,Corporate Services Director,METHODS PROFESSIONAL SERVICES,,Small,,5106233150,DCS OR PM,EC1A 4EN,"15,624.00",
MHCLG,PINS,17/01/2018,IT SUPPORT,Transformation Prog Management Office,REED SPECIALIST RECRUITMENT LTD,,Large,,5106233467,Agency Staff Transformation,SW20 0BA,375.42,
MHCLG,PINS,17/01/2018,NSI Fees & Expenses,NSI Fees Planning,DESIGN 2,,Micro,,2100057221,,PO20 0HX,"1,008.00",
MHCLG,PINS,17/01/2018,NSI Fees & Expenses,NSI Expenses Planning,DESIGN 2,,Micro,,2100057221,,PO20 0HX,134.02,
MHCLG,PINS,17/01/2018,NSI Fees & Expenses,NSI Fees Planning,MARTIN ANDREWS PLANNING CONSULTANCY,,Micro,,2100057222,,BH15 1HH,"2,016.00",
MHCLG,PINS,17/01/2018,NSI Fees & Expenses,NSI Expenses Planning,MARTIN ANDREWS PLANNING CONSULTANCY,,Micro,,2100057222,,BH15 1HH,152.22,
MHCLG,PINS,17/01/2018,Office machinery consumables,Business Support,X M A LIMITED,,Data Not Provided,,5106233443,Office Machine Consumables,NG11 7EP,"1,952.88",
MHCLG,PINS,17/01/2018,Office machinery consumables,Business Support,X M A LIMITED,,Data Not Provided,,5106233444,Office Machine Consumables,NG11 7EP,"1,952.88",
MHCLG,PINS,17/01/2018,Office Supplies,Business Support,BANNER BUSINESS SUPPLIES LTD,,Large,,5106233454,Office Stationery 17-18,S9 1XU,180.55,
MHCLG,PINS,17/01/2018,Office Supplies,Business Support,BANNER BUSINESS SUPPLIES LTD,,Large,,5106233454,Paper 17-18,S9 1XU,316.63,
MHCLG,PINS,17/01/2018,Office Supplies,Business Support,BANNER BUSINESS SUPPLIES LTD,,Large,,5106233463,Office Stationery 17-18,S9 1XU,274.87,
MHCLG,PINS,17/01/2018,Office Supplies,Business Support,BANNER BUSINESS SUPPLIES LTD,,Large,,5106233463,Paper 17-18,S9 1XU,328.31,
MHCLG,PINS,17/01/2018,Specialist Technical Support,ICT Head of Service,METHODS PROFESSIONAL SERVICES,,Small,,5106233152,Interim head of IT/Digital lead,EC1A 4EN,"17,760.00",
MHCLG,PINS,17/01/2018,TSOL Adverse Costs,"Policy, Knowledge & Quality",GOVERNMENT LEGAL DEPARTMENT,,Public Bodies,,2100057261,,WC2B 4TS,"3,000.00",
MHCLG,PINS,17/01/2018,TSOL Adverse Costs,"Policy, Knowledge & Quality",GOVERNMENT LEGAL DEPARTMENT,,Public Bodies,,2100057267,,WC2B 4TS,661.00,
MHCLG,PINS,17/01/2018,TSOL Adverse Costs,"Policy, Knowledge & Quality",GOVERNMENT LEGAL DEPARTMENT,,Public Bodies,,2100057271,,WC2B 4TS,"10,000.00",
MHCLG,PINS,17/01/2018,TSOL Adverse Costs,"Finance, Commercial & Performance",GOVERNMENT LEGAL DEPARTMENT,,Public Bodies,,2100057272,,WC2B 4TS,"40,000.00",
MHCLG,PINS,17/01/2018,TSOL Adverse Costs,"Policy, Knowledge & Quality",GOVERNMENT LEGAL DEPARTMENT,,Public Bodies,,2100057273,,WC2B 4TS,"18,500.00",
MHCLG,PINS,18/01/2018,Advertising,ROW,TMP (UK) LIMITED,,Large,,5106233484,Statutory Advertising - ROW,W1T 7RQ,451.43,
MHCLG,PINS,18/01/2018,Legal Fees,Wales Director,GOVERNMENT LEGAL DEPT,,Public Bodies,,5106233494,Legal Fees / Service Non VAT,WC2B 4TS,100.00,
MHCLG,PINS,18/01/2018,Legal Fees,Wales Director,GOVERNMENT LEGAL DEPT,,Public Bodies,,5106233494,Legal Fees(2017-18),WC2B 4TS,"2,127.84",
MHCLG,PINS,18/01/2018,NSI Fees & Expenses,NSI Fees Planning,CHRIS TIVEY ASSOCIATES,,Micro,,2100057277,,BA4 9DN,"1,680.00",
MHCLG,PINS,18/01/2018,NSI Fees & Expenses,NSI Expenses Planning,CHRIS TIVEY ASSOCIATES,,Micro,,2100057277,,BA4 9DN,108.36,
MHCLG,PINS,18/01/2018,Office Supplies,Business Support,BANNER BUSINESS SUPPLIES LTD,,Large,,5106233481,Office Stationery 17-18,S9 1XU,146.89,
MHCLG,PINS,18/01/2018,Office Supplies,Business Support,BANNER BUSINESS SUPPLIES LTD,,Large,,5106233481,Paper 17-18,S9 1XU,258.25,
MHCLG,PINS,18/01/2018,Office Supplies,Business Support,BANNER BUSINESS SUPPLIES LTD,,Large,,5106233482,Office Stationery 17-18,S9 1XU,306.24,
MHCLG,PINS,18/01/2018,Office Supplies,Business Support,BANNER BUSINESS SUPPLIES LTD,,Large,,5106233482,Paper 17-18,S9 1XU,258.25,
MHCLG,PINS,18/01/2018,Office Supplies,Business Support,BANNER BUSINESS SUPPLIES LTD,,Large,,5106233485,Office Stationery 17-18,S9 1XU,172.45,
MHCLG,PINS,18/01/2018,Office Supplies,Business Support,BANNER BUSINESS SUPPLIES LTD,,Large,,5106233485,Paper 17-18,S9 1XU,258.25,
MHCLG,PINS,19/01/2018,IT - Service Contracts,ICT Business Partner,ASTUN TECHNOLOGY LIMITED,,Small,,5106233524,GIS Year 2 - 2018-2019,KT18 7RL,"30,000.00",
MHCLG,PINS,19/01/2018,IT Systems Testing & Auditing,TR Digital Transformation,THIRTY FOUR FEET LTD,,Micro,,5106233441,Test resource - Horizon for DCLG,NP15 1QB,"2,520.00",
MHCLG,PINS,19/01/2018,Office machinery consumables,Business Support,X M A LIMITED,,Data Not Provided,,5106233513,Office Machine Consumables,NG11 7EP,"1,026.96",
MHCLG,PINS,19/01/2018,Office machinery consumables,Business Support,X M A LIMITED,,Data Not Provided,,5106233523,Office Machine Consumables,NG11 7EP,"1,086.84",
MHCLG,PINS,19/01/2018,Specialist Technical Support,TR Digital Transformation,VIEWDECK CONSULTING LTD,,Micro,,5106233330,Live service management services,W1B 3HH,"14,580.00",
MHCLG,PINS,19/01/2018,Vehicle hire,Business Support,ENTERPRISE RENT-A-CAR,,Large,,5106233474,Repair damage to hire car,TW20 9FB,"1,216.50",
MHCLG,PINS,23/01/2018,Agency Staff,Inspector Development & Support Team,REED SPECIALIST RECRUITMENT LTD,,Large,,5106233565,Temp staff for IDST,SW20 0BA,549.46,
MHCLG,PINS,23/01/2018,IT SUPPORT,Transformation Prog Management Office,REED SPECIALIST RECRUITMENT LTD,,Large,,5106233557,Agency Staff Transformation,SW20 0BA,929.00,
MHCLG,PINS,23/01/2018,NSI Fees & Expenses,NSI Fees Planning,KIM BENNETT PLANNING SERVICES,,Micro,,2100057368,,CT2 7ET,"1,120.00",
MHCLG,PINS,23/01/2018,NSI Fees & Expenses,NSI Expenses Planning,KIM BENNETT PLANNING SERVICES,,Micro,,2100057368,,CT2 7ET,71.70,
MHCLG,PINS,24/01/2018,Agency Staff,Inspector Development & Support Team,REED SPECIALIST RECRUITMENT LTD,,Large,,5106233558,Agency Staff for IDST DB,SW20 0BA,849.42,
MHCLG,PINS,24/01/2018,Agency Staff,TR Digital Transformation,REED SPECIALIST RECRUITMENT LTD,,Large,,5106233560,Build Suport,SW20 0BA,804.24,
MHCLG,PINS,24/01/2018,Agency Staff,Planning Casework Operations,REED SPECIALIST RECRUITMENT LTD,,Large,,5106233573,CLASSIC CASEWORK - CM,SW20 0BA,670.00,
MHCLG,PINS,24/01/2018,IT - Software Maintenance,ICT Business Partner,INFOR (UNITED KINGDOM) LIMITED,,Large,,5106233568,SunSystems support 01/02/18 - 31/01/19,B90 8BG,"8,137.08",
MHCLG,PINS,24/01/2018,NSI Fees & Expenses,NSI Fees Planning,MARTIN SEDDON LIMITED,,Micro,,2100057512,,DE4 2JP,756.00,
MHCLG,PINS,24/01/2018,NSI Fees & Expenses,NSI Expenses Planning,MARTIN SEDDON LIMITED,,Micro,,2100057512,,DE4 2JP,82.26,
MHCLG,PINS,24/01/2018,Office machinery consumables,Business Support,X M A LIMITED,,Data Not Provided,,5106233580,Office Machine Consumables,NG11 7EP,"1,486.32",
MHCLG,PINS,24/01/2018,Office machinery consumables,Business Support,X M A LIMITED,,Data Not Provided,,5106233583,Office Machine Consumables,NG11 7EP,781.15,
MHCLG,PINS,24/01/2018,Office machinery consumables,Business Support,X M A LIMITED,,Data Not Provided,,5106233587,Office Machine Consumables,NG11 7EP,390.58,
MHCLG,PINS,24/01/2018,Translations,Wales Director,TROSOL CYFYNGEDIG,,Small,,2100057554,Translation Costs,CF14 5GH,"-2,558.88",
MHCLG,PINS,24/01/2018,Translations,Wales Director,TROSOL CYFYNGEDIG,,Small,,5106233631,Translation Costs,CF14 5GH,"2,558.88",
MHCLG,PINS,24/01/2018,Vehicle hire,Inspector Costs,ENTERPRISE RENT-A-CAR,,Large,,5106233567,REPAIR DAMAGE TO HIRE CAR,TW20 9FB,817.16,
MHCLG,PINS,25/01/2018,Agency Staff,Enforcements,REED SPECIALIST RECRUITMENT LTD,,Large,,5106233559,Agency Staff RT,SW20 0BA,670.00,
MHCLG,PINS,25/01/2018,IT Systems Testing & Auditing,TR Digital Transformation,MOUCHEL MANAGEMENT CONSULTING,,Large,,5106233440,DCLG Horizon work - Senior rate,SG19 2BD,"8,402.40",
MHCLG,PINS,25/01/2018,Training,Human Resources,CABINET OFFICE,,Public Bodies,,5106233643,Actor Assessor T&S,FY5 3TA,604.90,
MHCLG,PINS,25/01/2018,Training,Human Resources,CABINET OFFICE,,Public Bodies,,5106233643,Actor and Assesor Training - INS Rec,FY5 3TA,"1,500.00",
MHCLG,PINS,25/01/2018,Translations,Wales Director,TROSOL CYFYNGEDIG,,Small,,5106233633,Translation Cost,CF14 5GH,"2,558.88",
MHCLG,PINS,26/01/2018,Agency Staff,Planning Casework Operations,BROOK STREET (UK) LTD,,Large,,5106233678,PCO AO Staff,AL1 4JB,483.84,
MHCLG,PINS,26/01/2018,Agency Staff,Customer & Communications,REED SPECIALIST RECRUITMENT LTD,,Large,,5106233673,Agency staff CST,SW20 0BA,599.84,
MHCLG,PINS,26/01/2018,Courier Services,Estates,PARCELFORCE WORLDWIDE,,Large,,5106233656,Courier service,MK7 8LE,"6,154.69",
MHCLG,PINS,26/01/2018,Legal Fees,"Policy, Knowledge & Quality",GOVERNMENT LEGAL DEPT,,Public Bodies,,5106233665,disbursements,WC2B 4TS,"27,396.25",
MHCLG,PINS,26/01/2018,Legal Fees,"Policy, Knowledge & Quality",GOVERNMENT LEGAL DEPT,,Public Bodies,,5106233665,fees and charges,WC2B 4TS,"63,605.34",
MHCLG,PINS,26/01/2018,NSI Fees & Expenses,NSI Fees Planning,MARTIN ANDREWS PLANNING CONSULTANCY,,Micro,,2100057604,,BH15 1HH,"1,848.00",
MHCLG,PINS,26/01/2018,NSI Fees & Expenses,NSI Expenses Planning,MARTIN ANDREWS PLANNING CONSULTANCY,,Micro,,2100057604,,BH15 1HH,86.64,
MHCLG,PINS,26/01/2018,Office machinery consumables,Business Support,X M A LIMITED,,Data Not Provided,,5106233666,Office Machine Consumables,NG11 7EP,"1,367.02",
MHCLG,PINS,29/01/2018,NSI Fees & Expenses,NSI Fees Planning,S P PLANNING,,Small,,2100057641,,EC1M 5QA,"1,344.00",
MHCLG,PINS,29/01/2018,NSI Fees & Expenses,NSI Expenses Planning,S P PLANNING,,Small,,2100057641,,EC1M 5QA,40.50,
MHCLG,PINS,29/01/2018,Specialist Technical Support,TR Organisational Agility,CAJA LTD,,Small,,5106231858,DCS OR Initiation,ST5 5NB,"10,200.00",
MHCLG,PINS,29/01/2018,Training,"Finance, Commercial & Performance",SR SUPPLY CHAIN CONSULTANTS LTD,,Micro,,5106233695,CIPS COURSE AD4,BB1 2QY,525.00,
MHCLG,PINS,29/01/2018,Translations,Infrastructure Planning,TROSOL CYFYNGEDIG,,Small,,5106233697,Welsh Translation Services NID,CF14 5GH,254.76,
MHCLG,PINS,29/01/2018,Web Services,ICT Business Partner,HELPFUL TECHNOLOGY LTD,,Micro,,5106233693,PINS intranet hosting - Jan to Mar 2018,BR3 4EY,720.00,
MHCLG,PINS,29/01/2018,Web Services,ICT Business Partner,HELPFUL TECHNOLOGY LTD,,Micro,,5106233693,PINS intranet mtce - Jan to Mar 2018,BR3 4EY,540.00,
MHCLG,PINS,31/01/2018,Advertising,ROW,TMP (UK) LIMITED,,Large,,5106233750,Statutory Advertising - ROW,W1T 7RQ,473.16,
MHCLG,PINS,31/01/2018,Advertising,Infrastructure Planning,TMP (UK) LIMITED,,Large,,5106233760,Statutory Advertising - NI,W1T 7RQ,"1,288.80",
MHCLG,PINS,31/01/2018,Agency Staff,Planning Casework Operations,REED SPECIALIST RECRUITMENT LTD,,Large,,5106233714,CLASSIC CASEWORK - CM,SW20 0BA,679.06,
MHCLG,PINS,31/01/2018,Agency Staff,Planning Casework Operations,REED SPECIALIST RECRUITMENT LTD,,Large,,5106233718,CLASSIC CASEWORK - CM,SW20 0BA,679.06,
MHCLG,PINS,31/01/2018,Agency Staff,Planning Casework Operations,REED SPECIALIST RECRUITMENT LTD,,Large,,5106233747,CLASSIC CASEWORK - ES,SW20 0BA,409.06,
MHCLG,PINS,31/01/2018,Agency Staff,Planning Casework Operations,REED SPECIALIST RECRUITMENT LTD,,Large,,5106233748,CLASSIC CASEWORK - KR,SW20 0BA,572.68,
MHCLG,PINS,31/01/2018,Agency Staff,Planning Casework Operations,REED SPECIALIST RECRUITMENT LTD,,Large,,5106233752,CLASSIC CASEWORK - ES,SW20 0BA,672.66,
MHCLG,PINS,31/01/2018,IT SUPPORT,Transformation Prog Management Office,REED SPECIALIST RECRUITMENT LTD,,Large,,5106233715,Agency Staff Transformation,SW20 0BA,941.72,
MHCLG,PINS,31/01/2018,Office machinery consumables,Business Support,X M A LIMITED,,Data Not Provided,,5106233756,Office Machine Consumables,NG11 7EP,571.50,
MHCLG,PINS,31/01/2018,Office machinery consumables,Business Support,X M A LIMITED,,Data Not Provided,,5106233757,Office Machine Consumables,NG11 7EP,402.19,
MHCLG,PINS,31/01/2018,Office machinery consumables,Business Support,X M A LIMITED,,Data Not Provided,,5106233758,Office Machine Consumables,NG11 7EP,477.04,
MHCLG,PINS,31/01/2018,Office machinery consumables,Business Support,X M A LIMITED,,Data Not Provided,,5106233759,Office Machine Consumables,NG11 7EP,"1,113.08",
MHCLG,PINS,31/01/2018,Office Supplies,Business Support,BANNER BUSINESS SUPPLIES LTD,,Large,,5106233754,Office Stationery 17-18,S9 1XU,246.57,
MHCLG,PINS,31/01/2018,Office Supplies,Business Support,BANNER BUSINESS SUPPLIES LTD,,Large,,5106233754,Paper 17-18,S9 1XU,164.84,
